fUST/lending_fUST_20241119
["ID","MTS","AMOUNT","RATE_DAILY","PERIOD"]
[342523773,1731957036596,-500.0,0.00019883,2]
[342523774,1731957036606,-500.0,0.00019883,2]
[342523775,1731957036616,-500.0,0.00019883,2]
[342523776,1731957036625,-500.0,0.00019883,2]
[342523777,1731957036633,-500.0,0.00019883,2]
[342523778,1731957036643,-500.0,0.00019883,2]
[342523779,1731957036653,-528.52272809,0.00019883,2]
[342523780,1731957036664,-500.0,0.00019883,2]
[342523781,1731957036675,-501.0423583,0.00019883,2]
[342523782,1731957036685,-500.0,0.00019883,2]
[342523783,1731957036698,-500.0,0.00019883,2]
[342523784,1731957036708,-500.0,0.00019883,2]
[342523785,1731957036718,-500.0,0.00019883,2]
[342523786,1731957036728,-500.0,0.00019883,2]
[342523787,1731957036738,-539.59180513,0.00019883,2]
[342523788,1731957036748,-500.0,0.00019883,2]
[342523789,1731957036759,-541.98036089,0.00019883,2]
[342523790,1731957036769,-500.0,0.00019883,2]
[342523791,1731957036779,-500.0,0.00019883,2]
[342523792,1731957036788,-500.0,0.00019883,2]
[342523793,1731957036798,-500.0,0.00019883,2]
[342523794,1731957036808,-502.59971219,0.00019883,2]
[342523795,1731957036818,-500.0,0.00019883,2]
[342523796,1731957036828,-500.0,0.00019883,2]
[342523797,1731957036838,-500.0,0.00019883,2]
[342523798,1731957036849,-500.0,0.00019883,2]
[342523799,1731957036859,-454.68155843,0.00019883,2]
[342523800,1731957036868,-500.0,0.00019883,2]
[342523801,1731957036878,-500.0,0.00019883,2]
[342523802,1731957036887,-500.0,0.00019883,2]
[342523803,1731957036897,-500.0,0.00019883,2]
[342523804,1731957036907,-555.30191237,0.00019883,2]
[342523805,1731957036917,-575.22850222,0.00019883,2]
[342523806,1731957036927,-500.0,0.00019883,2]
[342523807,1731957036937,-500.0,0.00019883,2]
[342523808,1731957036949,-500.64633438,0.00019883,2]
[342523809,1731957036959,-500.0,0.00019884,2]
[342523810,1731957036970,-500.0,0.00019884,2]
[342523811,1731957036980,-500.0,0.00019884,2]
[342523812,1731957036990,-500.0,0.00019884,2]
[342523813,1731957037000,-500.0,0.00019884,2]
[342523814,1731957037009,-500.0,0.00019884,2]
[342523815,1731957037020,-500.0,0.00019884,2]
[342523816,1731957037029,-500.0,0.00019884,2]
[342523817,1731957037040,-455.01368085,0.00019884,2]
[342523818,1731957037052,-500.0,0.00019884,2]
[342523819,1731957037066,-500.0,0.00019884,2]
[342523820,1731957037076,-500.0,0.00019884,2]
[342523821,1731957037087,-500.0,0.00019999,2]
[342523822,1731957037098,-500.0,0.00019999,2]
[342523823,1731957037108,-500.0,0.00019999,2]
[342523824,1731957037119,-500.0,0.00019999,2]
[342523825,1731957037130,-500.0,0.00019999,2]
[342523826,1731957037140,-500.0,0.00019999,2]
[342523827,1731957037150,-500.0,0.00019999,2]
[342523828,1731957037160,-500.0,0.00019999,2]
[342523829,1731957037170,-500.0,0.00019999,2]
[342523830,1731957037180,-500.0,0.00019999,2]
[342523831,1731957037193,-500.0,0.00019999,2]
[342523832,1731957037203,-500.0,0.00019999,2]
[342523833,1731957037213,-530.70301124,0.00019999,2]
[342523834,1731957037224,-502.2843608,0.00019999,2]
[342523835,1731957037235,-400.0,0.00019999,2]
[342523836,1731957037246,-501.22815251,0.00019999,2]
[342523837,1731957037256,-500.0,0.00019999,2]
[342523838,1731957037266,-500.0,0.00019999,2]
[342523839,1731957037277,-500.0,0.00019999,2]
[342523840,1731957037287,-500.0,0.00019999,2]
[342523841,1731957037297,-500.0,0.00019999,2]
[342523842,1731957037308,-500.0,0.00019999,2]
[342523843,1731957037319,-563.7,0.00019999,2]
[342523844,1731957037329,-500.0,0.00019999,2]
[342523845,1731957037338,-500.0,0.00019999,2]
[342523846,1731957037349,-500.0,0.00019999,2]
[342523847,1731957037360,-1307.02,0.00019999,2]
[342523848,1731957037370,-328.21874519,0.00019999,2]
[342523849,1731957037381,-500.0,0.00019999,2]
[342523850,1731957037391,-500.0,0.00019999,2]
[342523851,1731957037401,-500.0,0.00019999,2]
[342523852,1731957037411,-561.31,0.00019999,2]
[342523853,1731957037421,-500.0,0.00019999,2]
[342523854,1731957037431,-500.0,0.00019999,2]
[342523855,1731957037443,-500.0,0.00019999,2]
[342523856,1731957037453,-500.0,0.00019999,2]
[342523857,1731957037463,-500.0,0.00019999,2]
[342523858,1731957037472,-500.0,0.00019999,2]
[342523859,1731957037481,-7015.625,0.0002,2]
[342523860,1731957037490,-250.0,0.0002,2]
[342523861,1731957037500,-250.0,0.0002,2]
[342523862,1731957037511,-775.07,0.00020015,2]
[342523863,1731957037521,-500.0,0.00020015,2]
[342523864,1731957037531,-500.0,0.00020015,2]
[342523865,1731957037541,-500.0,0.00020015,2]
[342523866,1731957037552,-198.29,0.00020095,2]
[342523867,1731957037562,-500.0,0.00020095,2]
[342523868,1731957037571,-1107.84,0.00020095,2]
[342523869,1731957037581,-500.0,0.00020095,2]
[342523870,1731957037591,-500.0,0.00020095,2]
[342523871,1731957037601,-219.19,0.00020157,2]
[342523872,1731957037612,-275.83,0.00020157,2]
[342523873,1731957037622,-500.0,0.00020157,2]
[342523874,1731957037632,-543.55,0.00020157,2]
[342523875,1731957037642,-209.43735962,0.00020157,2]
[342523876,1731957037653,-500.0,0.00020157,2]
[342523877,1731957037663,-500.0,0.00020157,2]
[342523879,1731957037674,-500.0,0.00020157,2]
[342523880,1731957037685,-500.0,0.00020157,2]
[342523881,1731957037697,-500.0,0.00020157,2]
[342523882,1731957037706,-500.0,0.00020157,2]
[342523883,1731957037716,-500.0,0.00020157,2]
[342523884,1731957037726,-508.49181554,0.00020157,2]
[342523885,1731957037737,-500.0,0.00020157,2]
[342523886,1731957037747,-183.14,0.00020157,2]
[342523887,1731957037757,-500.0,0.00020157,2]
[342523889,1731957037767,-500.0,0.00020157,2]
[342523890,1731957037777,-500.0,0.00020157,2]
[342523891,1731957037787,-500.0,0.00020157,2]
[342523892,1731957037798,-500.0,0.00020157,2]
[342523893,1731957037808,-225.31708021,0.00020157,2]
[342523894,1731957037817,-500.0,0.00020157,2]
[342523895,1731957037827,-430.25,0.00020157,2]
[342523896,1731957037837,-628.52746655,0.00020157,2]
[342523897,1731957037848,-500.0,0.00020157,2]
[342523899,1731957037857,-500.0,0.00020157,2]
[342523901,1731957037867,-586.1,0.00020157,2]
[342523903,1731957037877,-500.0,0.00020157,2]
[342523905,1731957037887,-500.0,0.00020157,2]
[342523907,1731957037896,-500.0,0.00020157,2]
[342523909,1731957037906,-353.88109932,0.00020157,2]
[342523911,1731957037916,-500.0,0.00020157,2]
[342523913,1731957037927,-500.0,0.00020157,2]
[342523915,1731957037937,-220.1,0.00020157,2]
[342523917,1731957037950,-235.03,0.00020157,2]
[342523919,1731957037960,-500.0,0.00020157,2]
[342523921,1731957037971,-395.08,0.00020157,2]
[342523923,1731957037981,-500.0,0.00020157,2]
[342523925,1731957037992,-501.64078046,0.00020157,2]
[342523927,1731957038002,-500.0,0.00020157,2]
[342523929,1731957038012,-500.0,0.00020157,2]
[342523931,1731957038023,-500.0,0.00020157,2]
[342523933,1731957038033,-216.10954519,0.00020157,2]
[342523935,1731957038043,-500.0,0.00020157,2]
[342523937,1731957038055,-514.42,0.00020157,2]
[342523940,1731957038068,-500.0,0.00020157,2]
[342523942,1731957038079,-500.0,0.00020157,2]
[342523944,1731957038089,-500.0,0.00020157,2]
[342523946,1731957038100,-500.0,0.00020157,2]
[342523947,1731957038110,-500.0,0.00020157,2]
[342523950,1731957038120,-500.0,0.00020157,2]
[342523952,1731957038132,-500.0,0.00020157,2]
[342523954,1731957038143,-500.0,0.00020158,2]
[342523955,1731957038154,-603.09765585,0.00020158,2]
[342523958,1731957038165,-182.43,0.00020158,2]
[342523960,1731957038175,-364.42,0.00020273,2]
[342523961,1731957038186,-500.0,0.00020273,2]
[342523963,1731957038198,-500.0,0.00020273,2]
[342523965,1731957038208,-402.8,0.00020273,2]
[342523967,1731957038219,-500.0,0.00020273,2]
[342523970,1731957038231,-500.0,0.00020273,2]
[342523971,1731957038241,-500.0,0.00020273,2]
[342523974,1731957038252,-500.0,0.00020273,2]
[342523975,1731957038261,-500.0,0.00020273,2]
[342523977,1731957038271,-500.0,0.00020273,2]
[342523979,1731957038280,-500.0,0.00020273,2]
[342523981,1731957038291,-500.0,0.00020273,2]
[342523983,1731957038302,-500.0,0.00020273,2]
[342523985,1731957038311,-500.0,0.00020273,2]
[342523987,1731957038322,-500.0,0.00020273,2]
[342523989,1731957038332,-381.96,0.00020273,2]
[342523991,1731957038342,-500.0,0.00020273,2]
[342523993,1731957038352,-500.0,0.00020273,2]
[342523995,1731957038362,-775.07,0.00020289,2]
[342523997,1731957038373,-500.0,0.00020289,2]
[342523999,1731957038383,-500.0,0.00020289,2]
[342524001,1731957038392,-500.0,0.00020289,2]
[342524003,1731957038402,-500.0,0.00020369,2]
[342524005,1731957038412,-1107.84,0.00020369,2]
[342524007,1731957038422,-500.0,0.00020369,2]
[342524009,1731957038432,-395.36,0.00020369,2]
[342524011,1731957038442,-339.71,0.00020431,2]
[342524013,1731957038456,-500.0,0.00020431,2]
[342524015,1731957038465,-211.26,0.00020431,2]
[342524017,1731957038475,-242.9,0.00020431,2]
[342524019,1731957038485,-500.0,0.00020431,2]
[342524021,1731957038495,-502.69728796,0.00020431,2]
[342524023,1731957038505,-164.32,0.00020431,2]
[342524025,1731957038515,-1307.02,0.00020431,2]
[342524027,1731957038524,-500.0,0.00020431,2]
[342524029,1731957038535,-500.0,0.00020431,2]
[342524031,1731957038545,-559.24,0.00020431,2]
[342524033,1731957038555,-224.14156604,0.00020431,2]
[342524035,1731957038565,-500.0,0.00020431,2]
[342524037,1731957038575,-318.09,0.00020431,2]
[342524039,1731957038586,-500.0,0.00020431,2]
[342524041,1731957038595,-178.818202,0.00020447,2]
[342524043,1731957038605,-500.0,0.00020476,2]
[342524045,1731957038615,-1299.15767692,0.00020495,2]
[342524047,1731957038625,-500.0,0.00020547,2]
[342524049,1731957038635,-271.57,0.00020547,2]
[342524051,1731957038645,-237.17,0.00020547,2]
[342524053,1731957038654,-414.88089505,0.00020547,2]
[342524055,1731957038664,-265.27,0.00020547,2]
[342524057,1731957038673,-500.0,0.00020547,2]
[342524059,1731957038684,-284.96,0.00020547,2]
[342524061,1731957038696,-500.0,0.00020547,2]
[342524063,1731957038706,-500.0,0.00020547,2]
[342524065,1731957038716,-500.0,0.00020547,2]
[342524084,1731957038878,-500.0,0.00020547,2]
[342524086,1731957038890,-500.0,0.00020547,2]
[342524088,1731957038900,-500.0,0.00020547,2]
[342524090,1731957038911,-424.19,0.00020547,2]
[342524092,1731957038921,-775.07,0.00020563,2]
[342524094,1731957038933,-248.9,0.00020563,2]
[342524096,1731957038946,-500.0,0.00020563,2]
[342524098,1731957038956,-500.0,0.00020563,2]
[342524100,1731957038967,-648.92233034,0.00020642,2]
[342524102,1731957038977,-500.0,0.00020643,2]
[342524104,1731957038988,-1107.84,0.00020643,2]
[342524106,1731957038998,-500.0,0.00020643,2]
[342524108,1731957039009,-500.0,0.00020705,2]
[342524110,1731957039019,-471.02,0.00020705,2]
[342524113,1731957039029,-237.2,0.00020705,2]
[342524115,1731957039039,-500.0,0.00020705,2]
[342524117,1731957039049,-482.77,0.00020705,2]
[342524119,1731957039063,-509.47,0.00020705,2]
[342524121,1731957039073,-220.0,0.0002081,2]
[342524123,1731957039083,-500.0,0.00020821,2]
[342524125,1731957039094,-468.07,0.00020821,2]
[342524127,1731957039105,-500.0,0.00020821,2]
[342524129,1731957039114,-500.0,0.00020821,2]
[342524131,1731957039124,-500.0,0.00020821,2]
[342524133,1731957039137,-180.57,0.00020821,2]
[342524135,1731957039146,-268.59,0.00020821,2]
[342524137,1731957039157,-206.11,0.00020821,2]
[342524139,1731957039166,-775.07,0.00020837,2]
[342524141,1731957039177,-500.0,0.00020837,2]
[342524143,1731957039187,-500.0,0.00020837,2]
[342524145,1731957039199,-500.0,0.00020917,2]
[342524147,1731957039209,-1107.84,0.00020917,2]
[342524149,1731957039218,-500.0,0.00020917,2]
[342524151,1731957039229,-500.33,0.00020979,2]
[342524153,1731957039239,-1307.02,0.00020979,2]
[342524155,1731957039249,-500.0,0.00020979,2]
[342524157,1731957039258,-1307.02,0.00021091,2]
[342524159,1731957039269,-1307.02,0.00021091,2]
[342524161,1731957039279,-1307.02,0.00021091,2]
[342524163,1731957039289,-1307.02,0.00021091,2]
[342524165,1731957039299,-1307.02,0.00021091,2]
[342524167,1731957039309,-500.0,0.00021092,2]
[342524169,1731957039319,-537.14198284,0.00021092,2]
[342524171,1731957039330,-528.55815265,0.00021092,2]
[342524173,1731957039340,-500.0,0.00021092,2]
[342524175,1731957039350,-500.0,0.00021092,2]
[342524177,1731957039360,-302.80445087,0.00021092,2]
[342524179,1731957039371,-502.90773444,0.00021092,2]
[342524181,1731957039382,-502.66921834,0.00021092,2]
[342524183,1731957039393,-501.28719312,0.00021092,2]
[342524185,1731957039405,-500.0,0.00021095,2]
[342524187,1731957039419,-500.0,0.00021095,2]
[342524189,1731957039430,-500.0,0.00021095,2]
[342524191,1731957039439,-500.0,0.00021095,2]
[342524193,1731957039455,-775.07,0.00021111,2]
[342524195,1731957039467,-500.0,0.00021111,2]
[342524197,1731957039479,-500.0,0.00021111,2]
[342524199,1731957039489,-1299.15767692,0.00021156,2]
[342524202,1731957039499,-500.0,0.00021191,2]
[342524205,1731957039509,-1107.84,0.00021191,2]
[342524206,1731957039519,-500.0,0.00021191,2]
[342524208,1731957039529,-249.66,0.00021253,2]
[342524210,1731957039538,-150.0,0.0002131,2]
[342524212,1731957039549,-1307.02,0.00021365,2]
[342524214,1731957039559,-1307.02,0.00021365,2]
[342524216,1731957039570,-500.0,0.00021366,2]
[342524219,1731957039580,-500.0,0.00021369,2]
[342524221,1731957039591,-500.0,0.00021369,2]
[342524223,1731957039600,-500.0,0.00021369,2]
[342524225,1731957039610,-500.0,0.00021369,2]
[342524227,1731957039620,-775.07,0.00021385,2]
[342524229,1731957039631,-500.0,0.00021385,2]
[342524231,1731957039642,-500.0,0.00021385,2]
[342524233,1731957039651,-500.0,0.00021465,2]
[342524235,1731957039661,-394.82420345,0.00021465,2]
[342524278,1731957040085,-713.01579655,0.00021465,2]
[342524280,1731957040097,-500.0,0.00021465,2]
[342524282,1731957040108,-1307.02,0.00021639,2]
[342524284,1731957040117,-454.6,0.00021643,2]
[342524286,1731957040127,-500.0,0.00021643,2]
[342524288,1731957040139,-500.0,0.00021643,2]
[342524290,1731957040149,-595.61,0.00021643,2]
[342524292,1731957040159,-775.07,0.00021659,2]
[342524294,1731957040169,-500.0,0.00021659,2]
[342524296,1731957040179,-500.0,0.00021659,2]
[342524298,1731957040189,-1107.84,0.00021739,2]
[342524300,1731957040204,-500.0,0.00021739,2]
[342524302,1731957040215,-1299.15767692,0.00021817,2]
[342524304,1731957040225,-1307.02,0.00021916,2]
[342524306,1731957040235,-1307.02,0.00021916,2]
[342524307,1731957040244,-1307.02,0.00021916,2]
[342524308,1731957040254,-1307.02,0.00021916,2]
[342524309,1731957040264,-1307.02,0.00021916,2]
[342524310,1731957040273,-496.08,0.00021917,2]
[342524311,1731957040283,-500.0,0.00021917,2]
[342524312,1731957040293,-5976.56,0.00021917,2]
[342524313,1731957040302,-2378.85875528,0.00021917,2]
[342524314,1731957040315,-3597.70124472,0.00021917,2]
[342524315,1731957040324,-5976.56,0.00021917,2]
[342524316,1731957040333,-97.53682478,0.00021917,2]
[342524317,1731957040345,-588.78680207,0.00021917,2]
[342524318,1731957040410,-1370.0,0.0002,2]
[342524319,1731957040422,-5645.625,0.0002,2]
[342524320,1731957040432,-5290.23637315,0.00021917,2]
[342524321,1731957040448,-5976.56,0.00021917,2]
[342524322,1731957040457,-5976.56,0.00021917,2]
[342524323,1731957040467,-5976.56,0.00021917,2]
[342524324,1731957040476,-5976.56,0.00021917,2]
[342524325,1731957040486,-5976.56,0.00021917,2]
[342524326,1731957040496,-5976.56,0.00021917,2]
[342524327,1731957040506,-5976.56,0.00021917,2]
[342524328,1731957040515,-5976.56,0.00021917,2]
[342524329,1731957040525,-5976.56,0.00021917,2]
[342524330,1731957040535,-5976.56,0.00021917,2]
[342524331,1731957040545,-5976.56,0.00021917,2]
[342524332,1731957040555,-5976.56,0.00021917,2]
[342524333,1731957040565,-5976.56,0.00021917,2]
[342524335,1731957040575,-5976.56,0.00021917,2]
[342524337,1731957040584,-5976.56,0.00021917,2]
[342524338,1731957040594,-5976.56,0.00021917,2]
[342524341,1731957040605,-5976.56,0.00021917,2]
[342524343,1731957040615,-5976.56,0.00021917,2]
[342524345,1731957040624,-5976.56,0.00021917,2]
[342524347,1731957040634,-5976.65515675,0.00021917,2]
[342524348,1731957040643,-500.0,0.00021933,2]
[342524351,1731957040653,-500.0,0.00021933,2]
[342524352,1731957040663,-500.0,0.00021973,2]
[342524354,1731957040673,-500.0,0.00021973,2]
[342524356,1731957040683,-165.0,0.00022,2]
[342524358,1731957040692,-165.0,0.00022,2]
[342524360,1731957040705,-1107.84,0.00022013,2]
[342524362,1731957040715,-500.0,0.00022013,2]
[342524364,1731957040725,-500.0,0.00022191,2]
[342524366,1731957040735,-500.0,0.00022207,2]
[342524368,1731957040744,-360.14,0.00022207,2]
[342524370,1731957040754,-1107.84,0.00022287,2]
[342524372,1731957040763,-500.0,0.00022287,2]
[342524374,1731957040773,-1307.02,0.00022349,2]
[342524376,1731957040783,-500.0,0.00022465,2]
[342524378,1731957040793,-500.0,0.00022481,2]
[342524381,1731957040803,-1107.84,0.00022561,2]
[342524383,1731957040813,-500.0,0.00022561,2]
[342524385,1731957040823,-382.41,0.00022739,2]
[342524387,1731957040833,-500.0,0.00022755,2]
[342524388,1731957040842,-1107.84,0.00022835,2]
[342524391,1731957040852,-419.41,0.00022835,2]
[342524393,1731957040862,-165.0,0.00023014,2]
[342524395,1731957040873,-165.0,0.00023014,2]
[342524397,1731957040882,-500.0,0.00023029,2]
[342524399,1731957040891,-1107.84,0.00023109,2]
[342524401,1731957040901,-1307.02,0.0002317,2]
[342524403,1731957040911,-1307.02,0.00023172,2]
[342524405,1731957040920,-500.0,0.00023287,2]
[342524407,1731957040930,-500.0,0.00023303,2]
[342524409,1731957040940,-1000.0,0.00023342,2]
[342524411,1731957040953,-1000.0,0.00023342,2]
[342524413,1731957040963,-1107.84,0.00023383,2]
[342524415,1731957040973,-176.812,0.00023556,4]
[342524417,1731957040983,-500.0,0.00023577,2]
[342524419,1731957040992,-1107.84,0.00023657,2]
[342524421,1731957041001,-960.0,0.00023738,15]
[342524423,1731957041012,-500.0,0.00023851,2]
[342524425,1731957041023,-1107.84,0.00023931,2]
[342524427,1731957041033,-1307.02,0.00023993,2]
[342524429,1731957041044,-1307.02,0.00023993,2]
[342524431,1731957041054,-1307.02,0.00023993,2]
[342524433,1731957041067,-1307.02,0.00023993,2]
[342524435,1731957041077,-1307.03960066,0.00023993,2]
[342524437,1731957041087,-355.25,0.00024,2]
[342524439,1731957041098,-355.20348034,0.00024125,2]
[342524441,1731957041111,-144.79651966,0.00024125,2]
[342524443,1731957041121,-1107.84,0.00024205,2]
[342524446,1731957041134,-195.67870203,0.00024399,2]
[342524447,1731957041144,-1107.84,0.00024479,2]
[342524449,1731957041154,-500.0,0.00024657,3]
[342524452,1731957041164,-500.0,0.00024657,2]
[342524454,1731957041175,-10161.81,0.000247,14]
[342524456,1731957041185,-1107.84,0.00024753,2]
[342524458,1731957041199,-648.09,0.00024958,2]
[342524460,1731957041209,-151.0,0.00025,2]
[342524462,1731957041219,-302.8788636,0.00025,2]
[342524464,1731957041230,-300.0,0.00025,2]
[342524466,1731957041243,-300.0,0.00025,2]
[342524471,1731957041284,-300.0,0.00025,2]
[342524473,1731957041295,-271.7,0.00025,2]
[342524475,1731957041304,-500.0,0.00025,17]
[342524477,1731957041314,-302.8788636,0.00025,2]
[342524479,1731957041324,-1107.84,0.00025027,2]
[342524481,1731957041334,-150.112233,0.000252,12]
[342524483,1731957041343,-302.8788636,0.0002525,2]
[342524485,1731957041354,-302.8788636,0.0002525,2]
[342524487,1731957041364,-218.31,0.000253,7]
[342524489,1731957041374,-1107.97,0.00025301,2]
[342524491,1731957041384,-302.8788636,0.000255,2]
[342524493,1731957041394,-302.8788636,0.000255,2]
[342524495,1731957041404,-300.0,0.000256,2]
[342524497,1731957041414,-302.8788636,0.0002575,2]
[342524499,1731957041424,-302.8788636,0.0002575,2]
[342524501,1731957041434,-232.67171199,0.00025847,2]
[342524503,1731957041444,-1500.0,0.00025847,2]
[342524505,1731957041455,-155.22,0.000259,31]
[342524507,1731957041465,-500.5,0.00026,31]
[342524509,1731957041475,-498.5,0.00026,31]
[342524511,1731957041485,-302.8788636,0.00026,2]
[342524513,1731957041495,-302.8788636,0.00026,2]
[342524516,1731957041506,-500.0,0.00026027,4]
[342524517,1731957041516,-150.112233,0.000261,19]
[342524520,1731957041527,-454.3182954,0.0002625,4]
[342524522,1731957041537,-454.3182954,0.0002625,4]
[342524524,1731957041547,-660.0,0.00026384,2]
[342524526,1731957041557,-4589.74,0.000265,14]
[342524528,1731957041567,-454.3182954,0.000265,4]
[342524530,1731957041576,-454.3182954,0.000265,4]
[342524532,1731957041586,-300.0,0.000266,2]
[342524534,1731957041596,-319.5095571,0.0002675,4]
[342524536,1731957041607,-454.3182954,0.0002675,4]
[342524538,1731957041616,-178.818202,0.00026921,2]
[342524540,1731957041626,-200.0,0.00027,120]
[342524542,1731957041635,-158.0,0.00027,2]
[342524544,1731957041644,-326.0,0.00027,2]
[342524546,1731957041654,-150.112233,0.00027,18]
[342524548,1731957041664,-454.3182954,0.00027,4]
[342524550,1731957041673,-355.25,0.00027,2]
[342524552,1731957041683,-454.31829543,0.0002725,4]
[342524554,1731957041692,-399.15394851,0.00027397,5]
[342524556,1731957041705,-10161.81,0.000274,14]
[342524558,1731957041715,-308.8657,0.000276,120]
[342524560,1731957041726,-367.6,0.000276,2]
[342524562,1731957041735,-300.0,0.000276,2]
[342524564,1731957041745,-326.0,0.00027671,2]
[342524566,1731957041755,-150.112233,0.000279,18]
[342524568,1731957041765,-326.0,0.00027945,2]
[342524570,1731957041775,-152.402,0.00028,120]
[342524572,1731957041785,-150.129383,0.000281,2]
[342524574,1731957041795,-326.0,0.00028219,2]
[342524576,1731957041804,-1000.0,0.00028438,2]
[342524578,1731957041814,-160.0,0.00028443,3]
[342524580,1731957041824,-258.15085686,0.00028443,5]
[342524582,1731957041834,-326.0,0.00028493,2]
[342524584,1731957041843,-1000.0,0.00028504,2]
[342524586,1731957041853,-300.0,0.000286,2]
[342524588,1731957041863,-300.0,0.000286,2]
[342524590,1731957041872,-152.406,0.0002861,120]
[342524592,1731957041882,-1000.0,0.00028611,2]
[342524594,1731957041892,-59.89178302,0.00028613,10]
[342524723,1731957043109,-879.725,0.00024068,15]
[342524725,1731957043119,-445.792999,0.00028613,10]
[342524727,1731957043128,-500.0,0.00028613,10]
[342524729,1731957043141,-168.62215058,0.00028623,10]
[342524731,1731957043151,-252.21969304,0.00028623,10]
[342524733,1731957043161,-300.05,0.00028623,10]
[342524735,1731957043170,-500.0,0.00028623,10]
[342524737,1731957043180,-150.08,0.00028623,2]
[342524739,1731957043190,-564.0,0.00028623,10]
[342524741,1731957043203,-1000.0,0.00028661,2]
[342524743,1731957043213,-500.0,0.00028673,5]
[342524745,1731957043222,-151.0,0.00028686,7]
[342524747,1731957043232,-95.08303859,0.00028686,7]
[342524750,1731957043245,-55.91696141,0.00028686,7]
[342524752,1731957043254,-202.35855519,0.00028686,7]
[342524754,1731957043263,-3218.56097243,0.00028686,30]
[342524756,1731957043275,-781.43902757,0.00028686,30]
[342524758,1731957043285,-352.19956022,0.00028686,5]
[342524761,1731957043297,-147.80043978,0.00028686,5]
[342524763,1731957043307,-1022.04032301,0.000287,2]
[342524765,1731957043317,-4589.74,0.000287,30]
[342524767,1731957043327,-1268.66115547,0.000287,10]
[342524769,1731957043339,-6611.20299708,0.000287,10]
[342524772,1731957043352,-313.26257089,0.000287,10]
[342524774,1731957043363,-4507.8,0.000287,10]
[342525034,1731957046159,-514.0,0.00027,2]
[342525036,1731957046169,-158.0,0.00027,2]
[342525038,1731957046179,-17391.6,0.000287,10]
[342525057,1731957046362,-935.7,0.00024068,15]
[342525059,1731957046373,-514.0,0.00027671,2]
[342525062,1731957046385,-7565.8,0.000287,10]
[342535727,1731957581726,-171.995473,0.00013973,2]
[342535728,1731957581767,-210.77,0.000173,2]
[342535729,1731957581805,-500.0,0.00018998,2]
[342535730,1731957581846,-500.0,0.00018998,2]
[342535731,1731957581893,-300.0,0.00018998,2]
[342535732,1731957581931,-502.10154602,0.00018999,2]
[342535733,1731957581966,-500.0,0.00018999,2]
[342535734,1731957582004,-197.59,0.00018999,2]
[342535735,1731957582041,-500.0,0.00018999,2]
[342535736,1731957582077,-500.0,0.00018999,2]
[342535737,1731957582127,-500.0,0.00018999,2]
[342535738,1731957582167,-500.0,0.00018999,2]
[342535739,1731957582205,-521.2,0.00018999,2]
[342535740,1731957582242,-500.0,0.00018999,2]
[342535741,1731957582279,-500.0,0.00019272,2]
[342535742,1731957582316,-200.0,0.00019546,3]
[342535743,1731957582359,-183.32,0.00019546,2]